[Event "Titled Tuesday Blitz June 27 Early 2023"]
[White "Krutko, Anatoly"]
[Black "Gedajlovic, Max"]
[WhiteFideId "4185862"]
[BlackFideId "2616840"]
[WhiteElo "2561"]
[BlackElo "2702"]
[Result "0-1"]
[Round "3"]
[TimeControl "180+2"]
[Date "2023.06.27"]
[WhiteClock "0:00:00"]
[BlackClock "0:00:49"]
[Board "64"]

1. d4 {[%clk 0:03:00]}  Nf6 {[%clk 0:02:57]} 2. c4 {[%clk 0:03:01]}  e6 {[%clk 0:02:57]} 3. Nc3 {[%clk 0:03:01]}  Bb4 {[%clk 0:02:57]} 4. e3 {[%clk 0:03:01]}  O-O {[%clk 0:02:57]} 5. Bd3 {[%clk 0:02:59]}  d5 {[%clk 0:02:57]} 6. cxd5 {[%clk 0:02:59]}  exd5 {[%clk 0:02:57]} 7. Ne2 {[%clk 0:02:59]}  c6 {[%clk 0:02:55]} 8. O-O {[%clk 0:02:58]}  Re8 {[%clk 0:02:52]} 9. Ng3 {[%clk 0:02:56]}  Nbd7 {[%clk 0:02:51]} 10. a3 {[%clk 0:02:54]}  Bf8 {[%clk 0:02:51]} 11. b4 {[%clk 0:02:48]}  a5 {[%clk 0:02:46]} 12. b5 {[%clk 0:02:46]}  c5 {[%clk 0:02:46]} 13. a4 {[%clk 0:02:37]}  b6 {[%clk 0:02:23]} 14. Qf3 {[%clk 0:02:31]}  Bb7 {[%clk 0:02:20]} 15. Bb2 {[%clk 0:02:30]}  Qc7 {[%clk 0:02:16]} 16. Rac1 {[%clk 0:02:24]}  Rac8 {[%clk 0:02:15]} 17. Nf5 {[%clk 0:02:00]}  g6 {[%clk 0:02:13]} 18. Ng3 {[%clk 0:01:37]}  Bg7 {[%clk 0:02:11]} 19. Rfd1 {[%clk 0:01:28]}  Qd6 {[%clk 0:02:08]} 20. Bb1 {[%clk 0:01:24]}  cxd4 {[%clk 0:02:06]} 21. exd4 {[%clk 0:01:24]}  Qb4 {[%clk 0:01:59]} 22. Ba1 {[%clk 0:01:22]}  Rc7 {[%clk 0:01:48]} 23. Na2 {[%clk 0:01:04]}  Qd6 {[%clk 0:01:39]} 24. Rxc7 {[%clk 0:01:05]}  Qxc7 {[%clk 0:01:39]} 25. Rc1 {[%clk 0:01:06]}  Qd6 {[%clk 0:01:39]} 26. Bb2 {[%clk 0:01:05]}  Ne4 {[%clk 0:01:37]} 27. Ba3 {[%clk 0:01:01]}  Qe6 {[%clk 0:01:37]} 28. Bb2 {[%clk 0:00:36]}  Nd2 {[%clk 0:01:29]} 29. Qd1 {[%clk 0:00:36]}  Nc4 {[%clk 0:01:28]} 30. Bc3 {[%clk 0:00:34]}  Qd6 {[%clk 0:01:25]} 31. h3 {[%clk 0:00:34]}  h5 {[%clk 0:01:23]} 32. Nf1 {[%clk 0:00:33]}  Nf6 {[%clk 0:01:23]} 33. Nd2 {[%clk 0:00:32]}  Bh6 {[%clk 0:01:17]} 34. Nxc4 {[%clk 0:00:31]}  dxc4 {[%clk 0:01:17]} 35. Bd2 {[%clk 0:00:31]}  Bxd2 {[%clk 0:01:08]} 36. Qxd2 {[%clk 0:00:32]}  Qd5 {[%clk 0:01:07]} 37. f3 {[%clk 0:00:31]}  Rd8 {[%clk 0:01:07]} 38. Rd1 {[%clk 0:00:23]}  Qd6 {[%clk 0:01:07]} 39. Nc3 {[%clk 0:00:23]}  Nd5 {[%clk 0:01:06]} 40. Nxd5 {[%clk 0:00:23]}  Bxd5 {[%clk 0:01:06]} 41. Be4 {[%clk 0:00:24]}  Qb4 {[%clk 0:01:04]} 42. Bxd5 {[%clk 0:00:17]}  Rxd5 {[%clk 0:01:05]} 43. Qc2 {[%clk 0:00:15]}  c3 {[%clk 0:01:02]} 44. Rd3 {[%clk 0:00:14]}  Rxd4 {[%clk 0:00:56]} 45. Rxc3 {[%clk 0:00:14]}  Qd6 {[%clk 0:00:51]} 46. Rc8+ {[%clk 0:00:06]}  Kh7 {[%clk 0:00:51]} 47. Re8 {[%clk 0:00:00]}  Rd1+ {[%clk 0:00:49]} 0-1


[Site "https://www.chess.com"]

[Event "Titled Tuesday Blitz June 27 Early 2023"]
[White "Fernandez Guillen, Ernesto J."]
[Black "Koutsin, Sergey"]
[WhiteFideId "3512428"]
[BlackFideId "14101483"]
[WhiteElo "2698"]
[BlackElo "2490"]
[Result "1-0"]
[Round "3"]
[TimeControl "180+2"]
[Date "2023.06.27"]
[WhiteClock "0:00:13"]
[BlackClock "0:00:00"]
[Board "65"]

1. e4 {[%clk 0:02:48]}  e6 {[%clk 0:03:00]} 2. Nf3 {[%clk 0:02:45]}  d5 {[%clk 0:03:00]} 3. Nc3 {[%clk 0:02:46]}  Nf6 {[%clk 0:02:59]} 4. e5 {[%clk 0:02:46]}  Nfd7 {[%clk 0:02:59]} 5. d4 {[%clk 0:02:47]}  c5 {[%clk 0:02:59]} 6. Ne2 {[%clk 0:02:48]}  cxd4 {[%clk 0:02:59]} 7. Nexd4 {[%clk 0:02:49]}  Nc6 {[%clk 0:02:59]} 8. Nxc6 {[%clk 0:02:50]}  bxc6 {[%clk 0:02:59]} 9. Bd3 {[%clk 0:02:50]}  a5 {[%clk 0:02:59]} 10. O-O {[%clk 0:02:51]}  Ba6 {[%clk 0:02:59]} 11. Re1 {[%clk 0:02:52]}  Be7 {[%clk 0:02:59]} 12. Bxa6 {[%clk 0:02:51]}  Rxa6 {[%clk 0:02:58]} 13. Nd4 {[%clk 0:02:51]}  c5 {[%clk 0:02:40]} 14. Nb5 {[%clk 0:02:49]}  a4 {[%clk 0:02:13]} 15. Qg4 {[%clk 0:02:46]}  Kf8 {[%clk 0:02:13]} 16. c4 {[%clk 0:02:43]}  Qb8 {[%clk 0:02:05]} 17. Bf4 {[%clk 0:02:30]}  dxc4 {[%clk 0:02:02]} 18. Na3 {[%clk 0:02:25]}  Nb6 {[%clk 0:01:59]} 19. Rac1 {[%clk 0:01:49]}  h6 {[%clk 0:01:59]} 20. Qe2 {[%clk 0:01:45]}  g6 {[%clk 0:01:48]} 21. Rc3 {[%clk 0:01:36]}  Kg7 {[%clk 0:01:46]} 22. Rf3 {[%clk 0:01:34]}  Ra7 {[%clk 0:01:34]} 23. Rc1 {[%clk 0:01:29]}  Rb7 {[%clk 0:01:26]} 24. Bd2 {[%clk 0:01:19]}  Rd7 {[%clk 0:01:13]} 25. Bc3 {[%clk 0:01:15]}  Qb7 {[%clk 0:01:11]} 26. Nxc4 {[%clk 0:01:10]}  Nxc4 {[%clk 0:01:08]} 27. Qxc4 {[%clk 0:01:11]}  Qd5 {[%clk 0:01:07]} 28. Qe2 {[%clk 0:00:57]}  Qxa2 {[%clk 0:01:03]} 29. h4 {[%clk 0:00:40]}  h5 {[%clk 0:01:02]} 30. Qb5 {[%clk 0:00:38]}  Rhd8 {[%clk 0:01:00]} 31. Ba5 {[%clk 0:00:36]}  Rd1+ {[%clk 0:00:58]} 32. Rxd1 {[%clk 0:00:37]}  Rxd1+ {[%clk 0:00:58]} 33. Kh2 {[%clk 0:00:37]}  Qd5 {[%clk 0:00:47]} 34. Bc3 {[%clk 0:00:27]}  Bxh4 {[%clk 0:00:41]} 35. Qxa4 {[%clk 0:00:21]}  Be7 {[%clk 0:00:36]} 36. Qe8 {[%clk 0:00:19]}  Qd7 {[%clk 0:00:04]} 37. Rxf7+ {[%clk 0:00:17]}  Kh6 {[%clk 0:00:00]} 38. Qxe7 {[%clk 0:00:13]} 1-0


[Site "https://www.chess.com"]

[Event "Titled Tuesday Blitz June 27 Early 2023"]
[White "Mackster23"]
[Black "Oparin, Grigoriy"]
[BlackFideId "24125890"]
[WhiteElo "2490"]
[BlackElo "3026"]
[Result "0-1"]
[Round "3"]
[TimeControl "180+2"]
[Date "2023.06.27"]
[WhiteClock "0:00:03"]
[BlackClock "0:00:58"]
[Board "67"]

1. e4 {[%clk 0:02:26]}  c5 {[%clk 0:02:59]} 2. Nf3 {[%clk 0:02:24]}  d6 {[%clk 0:02:58]} 3. d4 {[%clk 0:02:23]}  cxd4 {[%clk 0:02:59]} 4. Nxd4 {[%clk 0:02:24]}  Nf6 {[%clk 0:02:59]} 5. Nc3 {[%clk 0:02:24]}  Nc6 {[%clk 0:03:00]} 6. Bg5 {[%clk 0:02:24]}  e6 {[%clk 0:03:00]} 7. Qd2 {[%clk 0:02:22]}  a6 {[%clk 0:03:00]} 8. O-O-O {[%clk 0:02:22]}  Bd7 {[%clk 0:03:01]} 9. f3 {[%clk 0:02:22]}  Nxd4 {[%clk 0:03:01]} 10. Qxd4 {[%clk 0:02:22]}  Be7 {[%clk 0:03:01]} 11. h4 {[%clk 0:02:22]}  Qc7 {[%clk 0:02:55]} 12. Kb1 {[%clk 0:02:21]}  b5 {[%clk 0:02:54]} 13. Be3 {[%clk 0:02:20]}  h5 {[%clk 0:02:48]} 14. Bg5 {[%clk 0:02:16]}  Bc6 {[%clk 0:02:44]} 15. Bd3 {[%clk 0:02:01]}  b4 {[%clk 0:02:33]} 16. Ne2 {[%clk 0:01:50]}  a5 {[%clk 0:02:28]} 17. f4 {[%clk 0:01:25]}  O-O {[%clk 0:02:16]} 18. e5 {[%clk 0:00:59]}  dxe5 {[%clk 0:02:15]} 19. fxe5 {[%clk 0:01:00]}  Ng4 {[%clk 0:02:13]} 20. Nf4 {[%clk 0:00:55]}  Rfd8 {[%clk 0:02:01]} 21. Qc4 {[%clk 0:00:35]}  Nxe5 {[%clk 0:02:00]} 22. Nxe6 {[%clk 0:00:35]}  Qc8 {[%clk 0:01:29]} 23. Nxd8 {[%clk 0:00:14]}  Nxc4 {[%clk 0:01:28]} 24. Bxe7 {[%clk 0:00:14]}  Ne5 {[%clk 0:01:19]} 25. Be2 {[%clk 0:00:13]}  Be4 {[%clk 0:01:15]} 26. Rd2 {[%clk 0:00:09]}  Qc7 {[%clk 0:01:06]} 27. Bg5 {[%clk 0:00:03]}  f6 {[%clk 0:01:05]} 28. Ne6 {[%clk 0:00:03]}  Qe7 {[%clk 0:01:06]} 29. Nd4 {[%clk 0:00:01]}  fxg5 {[%clk 0:01:05]} 30. hxg5 {[%clk 0:00:02]}  g6 {[%clk 0:01:02]} 31. Nf3 {[%clk 0:00:01]}  Nxf3 {[%clk 0:01:01]} 32. gxf3 {[%clk 0:00:02]}  Bf5 {[%clk 0:01:00]} 33. Bc4+ {[%clk 0:00:01]}  Kh8 {[%clk 0:01:00]} 34. Re2 {[%clk 0:00:01]}  Qc5 {[%clk 0:00:59]} 35. Bd3 {[%clk 0:00:02]}  Bxd3 {[%clk 0:00:59]} 36. cxd3 {[%clk 0:00:03]}  Qxg5 {[%clk 0:00:59]} 37. Rhe1 {[%clk 0:00:03]}  Qf5 {[%clk 0:00:59]} 38. Re4 {[%clk 0:00:03]}  Qxf3 {[%clk 0:00:58]} 0-1


[Site "https://www.chess.com"]

[Event "Titled Tuesday Blitz June 27 Early 2023"]
[White "Makarian, Rudik"]
[Black "ElDivis"]
[WhiteFideId "44105681"]
[WhiteElo "2959"]
[BlackElo "2552"]
[Result "1-0"]
[Round "3"]
[TimeControl "180+2"]
[Date "2023.06.27"]
[WhiteClock "0:00:33"]
[BlackClock "0:00:03"]
[Board "69"]

1. d4 {[%clk 0:03:00]}  Nf6 {[%clk 0:02:59]} 2. c4 {[%clk 0:03:01]}  g6 {[%clk 0:02:58]} 3. Nf3 {[%clk 0:03:02]}  Bg7 {[%clk 0:02:59]} 4. Nc3 {[%clk 0:03:02]}  O-O {[%clk 0:02:59]} 5. e4 {[%clk 0:03:03]}  d6 {[%clk 0:03:00]} 6. Be2 {[%clk 0:03:03]}  e5 {[%clk 0:03:00]} 7. O-O {[%clk 0:03:04]}  Nc6 {[%clk 0:03:01]} 8. d5 {[%clk 0:03:04]}  Ne7 {[%clk 0:03:01]} 9. b4 {[%clk 0:03:04]}  Nh5 {[%clk 0:03:01]} 10. a4 {[%clk 0:03:03]}  Nf4 {[%clk 0:02:59]} 11. Ra3 {[%clk 0:03:01]}  Nxe2+ {[%clk 0:02:58]} 12. Qxe2 {[%clk 0:02:59]}  f5 {[%clk 0:02:56]} 13. c5 {[%clk 0:02:58]}  f4 {[%clk 0:02:52]} 14. Ng5 {[%clk 0:02:40]}  h6 {[%clk 0:02:47]} 15. Ne6 {[%clk 0:02:40]}  Bxe6 {[%clk 0:02:48]} 16. dxe6 {[%clk 0:02:41]}  Qc8 {[%clk 0:02:44]} 17. Nd5 {[%clk 0:02:36]}  Re8 {[%clk 0:02:24]} 18. Rc3 {[%clk 0:02:30]}  dxc5 {[%clk 0:02:19]} 19. Rxc5 {[%clk 0:02:22]}  c6 {[%clk 0:01:58]} 20. Qg4 {[%clk 0:02:21]}  Kh7 {[%clk 0:01:45]} 21. Bb2 {[%clk 0:02:10]}  Ng8 {[%clk 0:01:14]} 22. b5 {[%clk 0:01:59]}  Rb8 {[%clk 0:00:51]} 23. Rfc1 {[%clk 0:01:44]}  Qxe6 {[%clk 0:00:50]} 24. Qxe6 {[%clk 0:01:42]}  Rxe6 {[%clk 0:00:51]} 25. Nb4 {[%clk 0:01:34]}  Bf8 {[%clk 0:00:51]} 26. R5c4 {[%clk 0:01:34]}  Bxb4 {[%clk 0:00:50]} 27. Rxb4 {[%clk 0:01:35]}  Ne7 {[%clk 0:00:50]} 28. h4 {[%clk 0:01:32]}  Rc8 {[%clk 0:00:45]} 29. Rc5 {[%clk 0:01:31]}  cxb5 {[%clk 0:00:45]} 30. Rcxb5 {[%clk 0:01:22]}  Nc6 {[%clk 0:00:45]} 31. Rxb7+ {[%clk 0:01:22]}  Kg8 {[%clk 0:00:42]} 32. R4b5 {[%clk 0:01:15]}  Nd4 {[%clk 0:00:30]} 33. Rd5 {[%clk 0:01:07]}  Ne2+ {[%clk 0:00:26]} 34. Kh2 {[%clk 0:01:07]}  g5 {[%clk 0:00:27]} 35. Bxe5 {[%clk 0:01:02]}  g4 {[%clk 0:00:25]} 36. Rg7+ {[%clk 0:01:02]}  Kf8 {[%clk 0:00:24]} 37. Rxg4 {[%clk 0:01:02]}  h5 {[%clk 0:00:16]} 38. Rg5 {[%clk 0:00:59]}  Rc1 {[%clk 0:00:14]} 39. Bxf4 {[%clk 0:00:39]}  Rxe4 {[%clk 0:00:10]} 40. Rdf5+ {[%clk 0:00:32]}  Ke7 {[%clk 0:00:03]} 41. Re5+ {[%clk 0:00:33]} 1-0


[Site "https://www.chess.com"]

[Event "Titled Tuesday Blitz June 27 Early 2023"]
[White "Tologon tegin, Semetei"]
[Black "Daneshvar, Bardiya"]
[WhiteFideId "13800574"]
[BlackFideId "12576468"]
[WhiteElo "2552"]
[BlackElo "2943"]
[Result "0-1"]
[Round "3"]
[TimeControl "180+2"]
[Date "2023.06.27"]
[WhiteClock "0:00:00"]
[BlackClock "0:01:23"]
[Board "70"]

1. g3 {[%clk 0:02:52]}  a6 {[%clk 0:03:00]} 2. Bg2 {[%clk 0:02:51]}  Nc6 {[%clk 0:03:00]} 3. d4 {[%clk 0:02:51]}  e5 {[%clk 0:02:58]} 4. Nf3 {[%clk 0:02:44]}  e4 {[%clk 0:02:58]} 5. Ne5 {[%clk 0:02:42]}  d5 {[%clk 0:02:53]} 6. Nxc6 {[%clk 0:02:30]}  bxc6 {[%clk 0:02:52]} 7. O-O {[%clk 0:02:31]}  Bd6 {[%clk 0:02:48]} 8. c4 {[%clk 0:02:29]}  Be6 {[%clk 0:02:45]} 9. Nc3 {[%clk 0:02:29]}  f5 {[%clk 0:02:42]} 10. c5 {[%clk 0:02:21]}  Be7 {[%clk 0:02:42]} 11. Bf4 {[%clk 0:02:21]}  Nf6 {[%clk 0:02:39]} 12. Be5 {[%clk 0:02:21]}  O-O {[%clk 0:02:37]} 13. f4 {[%clk 0:02:21]}  Nd7 {[%clk 0:02:36]} 14. e3 {[%clk 0:02:19]}  Nxe5 {[%clk 0:02:35]} 15. fxe5 {[%clk 0:02:18]}  a5 {[%clk 0:02:36]} 16. b3 {[%clk 0:02:11]}  Kh8 {[%clk 0:02:35]} 17. Ne2 {[%clk 0:02:10]}  g5 {[%clk 0:02:33]} 18. Qd2 {[%clk 0:02:07]}  Qb8 {[%clk 0:02:31]} 19. Rf2 {[%clk 0:02:06]}  Qb4 {[%clk 0:02:32]} 20. Qc2 {[%clk 0:01:55]}  a4 {[%clk 0:02:29]} 21. Rb1 {[%clk 0:01:55]}  axb3 {[%clk 0:02:27]} 22. Rxb3 {[%clk 0:01:56]}  Qa5 {[%clk 0:02:20]} 23. Nc3 {[%clk 0:01:28]}  Rab8 {[%clk 0:02:15]} 24. Rf1 {[%clk 0:01:22]}  Rxb3 {[%clk 0:02:13]} 25. Qxb3 {[%clk 0:01:23]}  Qa6 {[%clk 0:02:09]} 26. Rb1 {[%clk 0:00:56]}  Qd3 {[%clk 0:02:07]} 27. Nd1 {[%clk 0:00:54]}  Qd2 {[%clk 0:02:03]} 28. Nf2 {[%clk 0:00:36]}  f4 {[%clk 0:02:02]} 29. Nxe4 {[%clk 0:00:35]}  dxe4 {[%clk 0:01:57]} 30. Qxe6 {[%clk 0:00:35]}  f3 {[%clk 0:01:57]} 31. Bf1 {[%clk 0:00:25]}  Qxe3+ {[%clk 0:01:39]} 32. Kh1 {[%clk 0:00:25]}  Bd8 {[%clk 0:01:38]} 33. Qxc6 {[%clk 0:00:16]}  Qxd4 {[%clk 0:01:34]} 34. e6 {[%clk 0:00:14]}  e3 {[%clk 0:01:31]} 35. e7 {[%clk 0:00:07]}  Bxe7 {[%clk 0:01:31]} 36. Qxc7 {[%clk 0:00:07]}  Bxc5 {[%clk 0:01:29]} 37. Rc1 {[%clk 0:00:04]}  e2 {[%clk 0:01:27]} 38. Qxc5 {[%clk 0:00:00]}  Qxc5 {[%clk 0:01:23]} 0-1


[Site "https://www.chess.com"]

[Event "Titled Tuesday Blitz June 27 Early 2023"]
[White "Tikhonov, Viacheslav"]
[Black "Baskakov, Egor"]
[WhiteFideId "44196407"]
[BlackFideId "24197866"]
[WhiteElo "2548"]
[BlackElo "2900"]
[Result "0-1"]
[Round "3"]
[TimeControl "180+2"]
[Date "2023.06.27"]
[WhiteClock "0:00:07"]
[BlackClock "0:00:40"]
[Board "73"]

1. d4 {[%clk 0:02:59]}  Nf6 {[%clk 0:02:59]} 2. c4 {[%clk 0:03:00]}  e6 {[%clk 0:03:00]} 3. Nf3 {[%clk 0:03:00]}  d5 {[%clk 0:03:01]} 4. g3 {[%clk 0:03:00]}  Be7 {[%clk 0:03:00]} 5. Bg2 {[%clk 0:03:01]}  O-O {[%clk 0:03:01]} 6. O-O {[%clk 0:02:57]}  Ne4 {[%clk 0:03:02]} 7. Nfd2 {[%clk 0:02:55]}  f5 {[%clk 0:03:02]} 8. Qc2 {[%clk 0:02:55]}  c6 {[%clk 0:03:02]} 9. Nc3 {[%clk 0:02:51]}  Bd7 {[%clk 0:03:01]} 10. b3 {[%clk 0:02:48]}  Be8 {[%clk 0:03:01]} 11. a4 {[%clk 0:02:48]}  Nd7 {[%clk 0:03:00]} 12. Ba3 {[%clk 0:02:49]}  g5 {[%clk 0:03:00]} 13. Bxe7 {[%clk 0:02:48]}  Qxe7 {[%clk 0:03:01]} 14. e3 {[%clk 0:02:45]}  Bg6 {[%clk 0:02:59]} 15. f4 {[%clk 0:02:39]}  h6 {[%clk 0:02:54]} 16. a5 {[%clk 0:02:38]}  Rac8 {[%clk 0:02:53]} 17. Ndxe4 {[%clk 0:02:23]}  fxe4 {[%clk 0:02:51]} 18. Rab1 {[%clk 0:02:13]}  gxf4 {[%clk 0:02:46]} 19. gxf4 {[%clk 0:02:10]}  Bf5 {[%clk 0:02:45]} 20. Kh1 {[%clk 0:02:08]}  Kh7 {[%clk 0:02:44]} 21. Qf2 {[%clk 0:02:07]}  Rg8 {[%clk 0:02:44]} 22. b4 {[%clk 0:02:01]}  Nf6 {[%clk 0:02:43]} 23. Rg1 {[%clk 0:01:40]}  Ng4 {[%clk 0:02:39]} 24. Qe1 {[%clk 0:01:33]}  Rg6 {[%clk 0:02:34]} 25. Bh3 {[%clk 0:01:29]}  Rcg8 {[%clk 0:02:33]} 26. Rg3 {[%clk 0:01:26]}  h5 {[%clk 0:02:22]} 27. Bxg4 {[%clk 0:01:25]}  Bxg4 {[%clk 0:02:19]} 28. Qf2 {[%clk 0:01:22]}  Bf3+ {[%clk 0:02:15]} 29. Rxf3 {[%clk 0:01:19]}  exf3 {[%clk 0:02:14]} 30. Qxf3 {[%clk 0:01:17]}  Qh4 {[%clk 0:02:07]} 31. cxd5 {[%clk 0:01:08]}  cxd5 {[%clk 0:02:04]} 32. f5 {[%clk 0:01:09]}  Rf6 {[%clk 0:01:57]} 33. e4 {[%clk 0:01:06]}  dxe4 {[%clk 0:01:54]} 34. Nxe4 {[%clk 0:01:03]}  Rxf5 {[%clk 0:01:53]} 35. Qe2 {[%clk 0:01:03]}  Qg4 {[%clk 0:01:43]} 36. Qxg4 {[%clk 0:00:50]}  Rxg4 {[%clk 0:01:44]} 37. Re1 {[%clk 0:00:47]}  h4 {[%clk 0:01:40]} 38. h3 {[%clk 0:00:40]}  Rg8 {[%clk 0:01:39]} 39. Nc5 {[%clk 0:00:39]}  Rf3 {[%clk 0:01:36]} 40. Kh2 {[%clk 0:00:36]}  Rf2+ {[%clk 0:01:36]} 41. Kh1 {[%clk 0:00:36]}  Rd2 {[%clk 0:01:23]} 42. Re4 {[%clk 0:00:35]}  Rg3 {[%clk 0:01:10]} 43. Rxh4+ {[%clk 0:00:35]}  Kg6 {[%clk 0:01:01]} 44. Ne4 {[%clk 0:00:29]}  Rxd4 {[%clk 0:00:56]} 45. Rf4 {[%clk 0:00:28]}  Rxh3+ {[%clk 0:00:51]} 46. Kg2 {[%clk 0:00:24]}  Rb3 {[%clk 0:00:47]} 47. Rf6+ {[%clk 0:00:18]}  Kg7 {[%clk 0:00:47]} 48. Rxe6 {[%clk 0:00:19]}  Rdxb4 {[%clk 0:00:44]} 49. Nc5 {[%clk 0:00:19]}  Rc3 {[%clk 0:00:42]} 50. Re5 {[%clk 0:00:16]}  Rb2+ {[%clk 0:00:42]} 51. Kf1 {[%clk 0:00:10]}  Rc1+ {[%clk 0:00:42]} 52. Re1 {[%clk 0:00:10]}  Rxe1+ {[%clk 0:00:43]} 53. Kxe1 {[%clk 0:00:11]}  Rb5 {[%clk 0:00:42]} 54. Ne6+ {[%clk 0:00:09]}  Kf7 {[%clk 0:00:40]} 55. Nd8+ {[%clk 0:00:10]}  Ke8 {[%clk 0:00:39]} 56. a6 {[%clk 0:00:10]}  Kxd8 {[%clk 0:00:39]} 57. axb7 {[%clk 0:00:10]}  a5 {[%clk 0:00:39]} 58. b8=Q+ {[%clk 0:00:07]}  Rxb8 {[%clk 0:00:40]} 0-1


[Site "https://www.chess.com"]

[Event "Titled Tuesday Blitz June 27 Early 2023"]
[White "slidingknight2775"]
[Black "Mekhitarian, Krikor Sevag"]
[BlackFideId "2107660"]
[WhiteElo "2531"]
[BlackElo "2849"]
[Result "0-1"]
[Round "3"]
[TimeControl "180+2"]
[Date "2023.06.27"]
[WhiteClock "0:00:00"]
[BlackClock "0:00:19"]
[Board "77"]

1. d4 {[%clk 0:03:00]}  Nf6 {[%clk 0:02:59]} 2. c4 {[%clk 0:02:58]}  g6 {[%clk 0:03:00]} 3. g3 {[%clk 0:02:57]}  d5 {[%clk 0:03:00]} 4. Nf3 {[%clk 0:02:53]}  dxc4 {[%clk 0:02:59]} 5. Qa4+ {[%clk 0:02:52]}  Nfd7 {[%clk 0:02:59]} 6. Qxc4 {[%clk 0:02:52]}  Nb6 {[%clk 0:02:59]} 7. Qc2 {[%clk 0:02:50]}  Bg7 {[%clk 0:02:59]} 8. Qd1 {[%clk 0:02:43]}  Nc6 {[%clk 0:02:59]} 9. e3 {[%clk 0:02:38]}  e5 {[%clk 0:03:00]} 10. Bg2 {[%clk 0:02:34]}  exd4 {[%clk 0:02:59]} 11. exd4 {[%clk 0:02:34]}  O-O {[%clk 0:02:57]} 12. Be3 {[%clk 0:02:32]}  Nd5 {[%clk 0:02:56]} 13. O-O {[%clk 0:02:32]}  Re8 {[%clk 0:02:56]} 14. Re1 {[%clk 0:02:32]}  Nxe3 {[%clk 0:02:56]} 15. fxe3 {[%clk 0:02:33]}  Bf5 {[%clk 0:02:53]} 16. Nc3 {[%clk 0:02:31]}  Nb4 {[%clk 0:02:53]} 17. e4 {[%clk 0:02:14]}  Bg4 {[%clk 0:02:47]} 18. e5 {[%clk 0:02:10]}  Nc6 {[%clk 0:02:32]} 19. Ne2 {[%clk 0:02:00]}  Qd7 {[%clk 0:02:21]} 20. Qa4 {[%clk 0:01:48]}  Nxe5 {[%clk 0:02:12]} 21. Qxd7 {[%clk 0:01:44]}  Nxd7 {[%clk 0:02:10]} 22. h3 {[%clk 0:01:42]}  Bxf3 {[%clk 0:01:54]} 23. Bxf3 {[%clk 0:01:43]}  c6 {[%clk 0:01:54]} 24. Rad1 {[%clk 0:01:39]}  Rad8 {[%clk 0:01:52]} 25. Kg2 {[%clk 0:01:32]}  Nb6 {[%clk 0:01:51]} 26. b3 {[%clk 0:01:24]}  Rd7 {[%clk 0:01:47]} 27. Nf4 {[%clk 0:01:08]}  Rxe1 {[%clk 0:01:44]} 28. Rxe1 {[%clk 0:01:09]}  Bxd4 {[%clk 0:01:45]} 29. Rd1 {[%clk 0:01:07]}  Be5 {[%clk 0:01:44]} 30. Rxd7 {[%clk 0:01:07]}  Nxd7 {[%clk 0:01:45]} 31. Nd3 {[%clk 0:01:06]}  Bd6 {[%clk 0:01:45]} 32. g4 {[%clk 0:01:03]}  Kf8 {[%clk 0:01:45]} 33. Kf2 {[%clk 0:01:03]}  Ke7 {[%clk 0:01:45]} 34. Ke3 {[%clk 0:01:03]}  a5 {[%clk 0:01:46]} 35. a4 {[%clk 0:01:01]}  Ke6 {[%clk 0:01:41]} 36. Ne1 {[%clk 0:00:42]}  Ne5 {[%clk 0:01:29]} 37. Bg2 {[%clk 0:00:39]}  Bc5+ {[%clk 0:01:29]} 38. Ke2 {[%clk 0:00:35]}  Nd7 {[%clk 0:01:08]} 39. Nd3 {[%clk 0:00:34]}  Bd6 {[%clk 0:01:08]} 40. Ke3 {[%clk 0:00:25]}  Nf6 {[%clk 0:01:07]} 41. g5 {[%clk 0:00:20]}  Nd5+ {[%clk 0:01:07]} 42. Kd4 {[%clk 0:00:21]}  b6 {[%clk 0:01:07]} 43. h4 {[%clk 0:00:20]}  Ne7 {[%clk 0:01:01]} 44. Bh3+ {[%clk 0:00:20]}  f5 {[%clk 0:01:02]} 45. gxf6+ {[%clk 0:00:20]}  Kxf6 {[%clk 0:01:02]} 46. Ke4 {[%clk 0:00:20]}  Bg3 {[%clk 0:00:59]} 47. h5 {[%clk 0:00:16]}  gxh5 {[%clk 0:01:00]} 48. Kf3 {[%clk 0:00:16]}  Bd6 {[%clk 0:01:00]} 49. Nf2 {[%clk 0:00:16]}  Ke5 {[%clk 0:00:56]} 50. Ke2 {[%clk 0:00:15]}  Kd4 {[%clk 0:00:53]} 51. Kd2 {[%clk 0:00:14]}  Nd5 {[%clk 0:00:52]} 52. Nd1 {[%clk 0:00:13]}  Nf4 {[%clk 0:00:50]} 53. Bf5 {[%clk 0:00:12]}  h4 {[%clk 0:00:50]} 54. Ke1 {[%clk 0:00:12]}  h3 {[%clk 0:00:49]} 55. Nf2 {[%clk 0:00:11]}  h2 {[%clk 0:00:49]} 56. Be4 {[%clk 0:00:11]}  c5 {[%clk 0:00:42]} 57. Bf3 {[%clk 0:00:08]}  c4 {[%clk 0:00:41]} 58. bxc4 {[%clk 0:00:08]}  Kxc4 {[%clk 0:00:42]} 59. Ne4 {[%clk 0:00:07]}  Be7 {[%clk 0:00:39]} 60. Kf2 {[%clk 0:00:07]}  Bh4+ {[%clk 0:00:36]} 61. Ke3 {[%clk 0:00:06]}  Nd5+ {[%clk 0:00:36]} 62. Kd2 {[%clk 0:00:07]}  Kb4 {[%clk 0:00:34]} 63. Nd6 {[%clk 0:00:05]}  Nc3 {[%clk 0:00:30]} 64. Nc8 {[%clk 0:00:04]}  Nxa4 {[%clk 0:00:30]} 65. Nd6 {[%clk 0:00:04]}  Nc5 {[%clk 0:00:27]} 66. Nc8 {[%clk 0:00:03]}  Bd8 {[%clk 0:00:26]} 67. Na7 {[%clk 0:00:03]}  Ne6 {[%clk 0:00:19]} 68. Nc6+ {[%clk 0:00:03]}  Kc5 {[%clk 0:00:20]} 69. Ne5 {[%clk 0:00:02]}  Bc7 {[%clk 0:00:20]} 70. Nd3+ {[%clk 0:00:02]}  Kd4 {[%clk 0:00:20]} 71. Ne1 {[%clk 0:00:01]}  Ng5 {[%clk 0:00:20]} 72. Nc2+ {[%clk 0:00:01]}  Kc5 {[%clk 0:00:20]} 73. Bh1 {[%clk 0:00:02]}  b5 {[%clk 0:00:20]} 74. Ne1 {[%clk 0:00:02]}  a4 {[%clk 0:00:19]} 75. Nd3+ {[%clk 0:00:02]}  Kd4 {[%clk 0:00:19]} 76. Ne1 {[%clk 0:00:00]}  Ba5+ {[%clk 0:00:19]} 0-1


[Site "https://www.chess.com"]